[Event "FIDE Grand Swiss 2023"]
[Site "Villa Marina, Douglas, Isle of Man"]
[Date "2023.10.27"]
[Round "3.42"]
[White "Iturrizaga Bonelli, Eduardo"]
[Black "Matlakov, Maxim"]
[Result "0-1"]
[WhiteElo "2615"]
[BlackElo "2674"]
[EventDate "2023.10.25"]
[ECO "A28"]
[PlyCount "54"]
[BlackFideId "4168003"]
[TimeControl "40/100 + 20/50 + 15 + 30s/move"]
[WhiteFideId "3901211"]

1.c4 {[%clk 01:40:57] [%emt 00:00:03]} 1...e5 {[%clk 01:40:48] [%emt 00:00:13]} 
2.Nc3 {[%clk 01:41:19] [%emt 00:00:08]} 2...Nf6 {[%clk 01:41:03] [%emt
00:00:16]} 3.Nf3 {[%clk 01:41:41] [%emt 00:00:07]} 3...Nc6 {[%clk 01:41:25]
[%emt 00:00:09]} 4.d3 {[%clk 01:41:33] [%emt 00:00:37]} 4...d5 {[%clk 01:39:57]
[%emt 00:01:58]} 5.cxd5 {[%clk 01:41:55] [%emt 00:00:08]} 5...Nxd5 {[%clk
01:40:22] [%emt 00:00:05]} 6.g3 {[%clk 01:40:51] [%emt 00:01:33]} 6...Bc5 
{[%clk 01:36:24] [%emt 00:04:29]} 7.Bg2 {[%clk 01:35:30] [%emt 00:05:51]} 
7...O-O {[%clk 01:36:27] [%emt 00:00:28]} 8.O-O {[%clk 01:35:38] [%emt
00:00:20]} 8...h6 {[%clk 01:36:45] [%emt 00:00:12]} 9.Bd2 {[%clk 01:26:38] [%emt
00:09:31]} 9...Nf6 {[%clk 01:36:30] [%emt 00:00:46]} 10.Qa4 {[%clk 01:18:33]
[%emt 00:08:34]} 10...Re8 {[%clk 01:32:49] [%emt 00:04:11]} 11.a3 {[%clk
01:12:58] [%emt 00:06:06]} 11...Bb6 {[%clk 01:24:05] [%emt 00:09:13]} 12.Rfc1 
{[%clk 01:07:31] [%emt 00:05:56]} 12...Nd4 {[%clk 01:19:37] [%emt 00:04:59]} 
13.Nxd4 {[%clk 00:48:10] [%emt 00:19:50]} 13...exd4 {[%clk 01:15:44] [%emt
00:04:23]} 14.Ne4 {[%clk 00:48:30] [%emt 00:00:10]} 14...Bg4 {[%clk 01:12:09]
[%emt 00:04:05]} 15.Ba5 {[%clk 00:41:45] [%emt 00:07:16]} 15...Nxe4 {[%clk
00:41:11] [%emt 00:31:27]} 16.Bxe4 {[%clk 00:41:53] [%emt 00:00:22]} 16...Rxe4 
{[%clk 00:39:03] [%emt 00:02:39]} 17.dxe4 {[%clk 00:42:02] [%emt 00:00:20]} 
17...Bxe2 {[%clk 00:39:28] [%emt 00:00:06]} 18.Re1 {[%clk 00:37:25] [%emt
00:05:07]} 18...Bg4 {[%clk 00:15:42] [%emt 00:24:15]} 19.Bxb6 {[%clk 00:32:25]
[%emt 00:05:31]} 19...axb6 {[%clk 00:16:06] [%emt 00:00:06]} 20.Qc4 {[%clk
00:30:33] [%emt 00:02:22]} 20...c5 {[%clk 00:16:17] [%emt 00:00:20]} 21.b3 
{[%clk 00:30:11] [%emt 00:00:51]} 21...Qf6 {[%clk 00:13:00] [%emt 00:03:47]} 
22.f4 {[%clk 00:29:06] [%emt 00:01:35]} 22...Rd8 {[%clk 00:09:50] [%emt
00:03:40]} 23.Ra2 {[%clk 00:28:26] [%emt 00:01:10]} 23...d3 {[%clk 00:09:20]
[%emt 00:01:00]} 24.Rd2 {[%clk 00:27:12] [%emt 00:01:44]} 24...Be6 {[%clk
00:08:54] [%emt 00:00:56]} 25.Qb5 {[%clk 00:26:22] [%emt 00:01:20]} 25...Qc3 
{[%clk 00:06:54] [%emt 00:02:29]} 26.Ree2 {[%clk 00:26:45] [%emt 00:00:07]} 
26...Bh3 {[%clk 00:05:32] [%emt 00:01:53]} 27.Kf2 {[%clk 00:26:46] [%emt
00:00:29]} 27...Rd4 {[%clk 00:04:11] [%emt 00:01:52]} 0-1

[Event "FIDE Grand Swiss 2023"]
[Site "Villa Marina, Douglas, Isle of Man"]
[Date "2023.10.27"]
[Round "3.43"]
[White "Bluebaum, Matthias"]
[Black "Sanal, Vahap"]
[Result "1-0"]
[WhiteElo "2668"]
[BlackElo "2603"]
[EventDate "2023.10.25"]
[ECO "A06"]
[PlyCount "35"]
[BlackFideId "6300545"]
[TimeControl "40/100 + 20/50 + 15 + 30s/move"]
[WhiteFideId "24651516"]

1.Nf3 {[%clk 01:40:57] [%emt 00:00:02]} 1...d5 {[%clk 01:40:50] [%emt 00:00:10]} 
2.e3 {[%clk 01:41:21] [%emt 00:00:05]} 2...Nf6 {[%clk 01:40:29] [%emt 00:00:51]} 
3.c4 {[%clk 01:41:44] [%emt 00:00:07]} 3...e6 {[%clk 01:40:29] [%emt 00:00:30]} 
4.Nc3 {[%clk 01:41:45] [%emt 00:00:30]} 4...Be7 {[%clk 01:38:43] [%emt
00:02:15]} 5.b3 {[%clk 01:42:00] [%emt 00:00:15]} 5...O-O {[%clk 01:38:20] [%emt
00:00:53]} 6.Bb2 {[%clk 01:42:23] [%emt 00:00:07]} 6...b6 {[%clk 01:34:49] [%emt
00:04:02]} 7.cxd5 {[%clk 01:41:40] [%emt 00:01:12]} 7...exd5 {[%clk 01:34:29]
[%emt 00:00:50]} 8.d4 {[%clk 01:41:10] [%emt 00:01:00]} 8...Bb7 {[%clk 01:32:12]
[%emt 00:02:48]} 9.Bd3 {[%clk 01:40:57] [%emt 00:00:43]} 9...Nbd7 {[%clk
01:31:44] [%emt 00:00:58]} 10.O-O {[%clk 01:41:17] [%emt 00:00:09]} 10...a6 
{[%clk 01:31:07] [%emt 00:01:07]} 11.Ne2 {[%clk 01:36:08] [%emt 00:05:39]} 
11...Bd6 {[%clk 01:22:36] [%emt 00:09:01]} 12.Ng3 {[%clk 01:35:31] [%emt
00:01:08]} 12...g6 {[%clk 01:19:00] [%emt 00:04:05]} 13.Ne5 {[%clk 01:35:15]
[%emt 00:00:46]} 13...Ne4 {[%clk 01:16:18] [%emt 00:03:13]} 14.Bxe4 {[%clk
01:23:50] [%emt 00:11:55]} 14...dxe4 {[%clk 01:15:39] [%emt 00:01:08]} 15.Qc2 
{[%clk 01:22:30] [%emt 00:01:51]} 15...Nf6 {[%clk 01:07:02] [%emt 00:09:06]} 
16.d5 {[%clk 01:16:30] [%emt 00:06:31]} 16...Bxd5 {[%clk 00:57:03] [%emt
00:10:28]} 17.Qc3 {[%clk 01:12:26] [%emt 00:04:34]} 17...h5 {[%clk 00:56:15]
[%emt 00:01:18]} 18.Nd7 {[%clk 01:11:53] [%emt 00:01:04]} 1-0

[Event "FIDE Grand Swiss 2023"]
[Site "Villa Marina, Douglas, Isle of Man"]
[Date "2023.10.27"]
[Round "3.44"]
[White "Petrosyan, Manuel"]
[Black "Santos Latasa, Jaime"]
[Result "1-0"]
[WhiteElo "2604"]
[BlackElo "2650"]
[EventDate "2023.10.25"]
[ECO "B90"]
[PlyCount "103"]
[BlackFideId "2293307"]
[TimeControl "40/100 + 20/50 + 15 + 30s/move"]
[WhiteFideId "13300857"]

1.e4 {[%clk 01:39:13] [%emt 00:01:46]} 1...c5 {[%clk 01:40:18] [%emt 00:00:43]} 
2.Nf3 {[%clk 01:37:14] [%emt 00:02:29]} 2...d6 {[%clk 01:40:00] [%emt 00:00:48]} 
3.d4 {[%clk 01:37:24] [%emt 00:00:20]} 3...cxd4 {[%clk 01:40:24] [%emt
00:00:07]} 4.Nxd4 {[%clk 01:37:50] [%emt 00:00:03]} 4...Nf6 {[%clk 01:40:46]
[%emt 00:00:08]} 5.Nc3 {[%clk 01:38:16] [%emt 00:00:04]} 5...a6 {[%clk 01:41:13]
[%emt 00:00:03]} 6.Bd3 {[%clk 01:38:12] [%emt 00:00:33]} 6...e5 {[%clk 01:40:59]
[%emt 00:00:45]} 7.Nde2 {[%clk 01:37:58] [%emt 00:00:44]} 7...Be7 {[%clk
01:41:20] [%emt 00:00:09]} 8.O-O {[%clk 01:37:57] [%emt 00:00:31]} 8...Be6 
{[%clk 01:41:44] [%emt 00:00:06]} 9.Ng3 {[%clk 01:23:08] [%emt 00:15:19]} 
9...Nbd7 {[%clk 01:37:53] [%emt 00:04:22]} 10.Qf3 {[%clk 01:16:10] [%emt
00:07:27]} 10...Bg4 {[%clk 01:28:01] [%emt 00:10:21]} 11.Qe3 {[%clk 01:16:34]
[%emt 00:00:06]} 11...Be6 {[%clk 01:28:27] [%emt 00:00:05]} 12.Qf3 {[%clk
01:09:25] [%emt 00:07:39]} 12...g6 {[%clk 01:12:45] [%emt 00:16:12]} 13.h3 
{[%clk 01:06:45] [%emt 00:03:10]} 13...h5 {[%clk 01:09:15] [%emt 00:04:00]} 
14.Rd1 {[%clk 01:03:47] [%emt 00:03:28]} 14...Rc8 {[%clk 01:04:03] [%emt
00:05:43]} 15.a4 {[%clk 00:59:27] [%emt 00:04:50]} 15...Kf8 {[%clk 00:50:44]
[%emt 00:13:49]} 16.a5 {[%clk 00:42:50] [%emt 00:17:06]} 16...Kg7 {[%clk
00:49:17] [%emt 00:01:57]} 17.Nf1 {[%clk 00:42:44] [%emt 00:00:35]} 17...Nb8 
{[%clk 00:40:10] [%emt 00:09:38]} 18.Nd5 {[%clk 00:36:49] [%emt 00:06:25]} 
18...Bxd5 {[%clk 00:39:49] [%emt 00:00:52]} 19.exd5 {[%clk 00:37:14] [%emt
00:00:04]} 19...Nbd7 {[%clk 00:40:13] [%emt 00:00:07]} 20.b4 {[%clk 00:34:18]
[%emt 00:03:25]} 20...Nh7 {[%clk 00:33:03] [%emt 00:07:40]} 21.c4 {[%clk
00:30:56] [%emt 00:03:52]} 21...f5 {[%clk 00:32:27] [%emt 00:01:05]} 22.Be2 
{[%clk 00:31:20] [%emt 00:00:06]} 22...Rf8 {[%clk 00:31:07] [%emt 00:01:50]} 
23.Qa3 {[%clk 00:24:02] [%emt 00:07:48]} 23...Ng5 {[%clk 00:27:01] [%emt
00:04:37]} 24.Nd2 {[%clk 00:23:40] [%emt 00:00:52]} 24...Nf7 {[%clk 00:24:29]
[%emt 00:03:03]} 25.Bb2 {[%clk 00:21:43] [%emt 00:02:27]} 25...Re8 {[%emt
00:07:23]} 26.Rac1 {[%clk 00:20:25]} 26...Kh7 {[%clk 00:19:47] [%emt 00:00:06]} 
27.Rc2 {[%clk 00:15:40] [%emt 00:05:15]} 27...e4 {[%clk 00:17:16] [%emt
00:03:01]} 28.Nb3 {[%clk 00:13:36] [%emt 00:02:34]} 28...Bg5 {[%clk 00:16:03]
[%emt 00:01:43]} 29.Nd4 {[%clk 00:12:23] [%emt 00:01:43]} 29...e3 {[%clk
00:16:17] [%emt 00:00:16]} 30.Ne6 {[%clk 00:09:15] [%emt 00:03:38]} 30...exf2+ 
{[%clk 00:16:35] [%emt 00:00:12]} 31.Kxf2 {[%clk 00:05:41] [%emt 00:04:04]} 
31...Qe7 {[%clk 00:16:47] [%emt 00:00:18]} 32.Kg1 {[%clk 00:04:35] [%emt
00:01:36]} 32...Bf6 {[%clk 00:15:10] [%emt 00:02:08]} 33.Bf1 {[%clk 00:02:23]
[%emt 00:02:41]} 33...Bxb2 {[%clk 00:13:43] [%emt 00:01:57]} 34.Qxb2 {[%clk
00:02:52] [%emt 00:00:02]} 34...Ng5 {[%clk 00:13:53] [%emt 00:00:19]} 35.Re2 
{[%clk 00:00:51] [%emt 00:02:31]} 35...Ne4 {[%clk 00:13:03] [%emt 00:01:20]} 
36.Qd4 {[%clk 00:01:09] [%emt 00:00:12]} 36...Nf8 {[%clk 00:12:55] [%emt
00:00:38]} 37.Nxf8+ {[%clk 00:01:04] [%emt 00:00:35]} 37...Qxf8 {[%clk 00:12:26]
[%emt 00:00:59]} 38.Ree1 {[%clk 00:01:19] [%emt 00:00:15]} 38...Qg7 {[%clk
00:11:41] [%emt 00:01:15]} 39.Qb6 {[%clk 00:00:49] [%emt 00:01:00]} 39...Qc7 
{[%clk 00:06:34] [%emt 00:05:37]} 40.Bd3 {[%clk 00:00:34] [%emt 00:00:45]} 
40...Qxb6+ {[%clk 00:04:36] [%emt 00:02:28]} 41.axb6 {[%clk 00:49:48] [%emt
00:01:17]} 41...Kg7 {[%clk 00:46:30] [%emt 00:08:35]} 42.Bxe4 {[%clk 00:35:31]
[%emt 00:14:47]} 42...fxe4 {[%clk 00:45:54] [%emt 00:01:07]} 43.Rc1 {[%clk
00:23:51] [%emt 00:12:09]} 43...e3 {[%clk 00:41:08] [%emt 00:05:16]} 44.c5 
{[%clk 00:22:08] [%emt 00:02:13]} 44...Re4 {[%clk 00:32:00] [%emt 00:09:38]} 
45.c6 {[%clk 00:20:12] [%emt 00:02:26]} 45...Rxb4 {[%clk 00:27:16] [%emt
00:05:14]} 46.Rxe3 {[%clk 00:17:34] [%emt 00:03:08]} 46...bxc6 {[%clk 00:25:30]
[%emt 00:02:17]} 47.Re7+ {[%clk 00:15:26] [%emt 00:02:37]} 47...Kf8 {[%clk
00:24:51] [%emt 00:01:09]} 48.Rh7 {[%clk 00:12:47] [%emt 00:03:09]} 48...Kg8 
{[%clk 00:25:03] [%emt 00:00:17]} 49.Rc7 {[%clk 00:12:52] [%emt 00:00:26]} 
49...Rf8 {[%clk 00:22:15] [%emt 00:03:18]} 50.b7 {[%clk 00:11:04] [%emt
00:02:17]} 50...cxd5 {[%clk 00:21:30] [%emt 00:01:16]} 51.Rf1 {[%clk 00:11:23]
[%emt 00:00:11]} 51...Re8 {[%clk 00:20:51] [%emt 00:01:09]} 52.Rc8 {[%clk
00:11:31] [%emt 00:00:22]} 1-0

[Event "FIDE Grand Swiss 2023"]
[Site "Villa Marina, Douglas, Isle of Man"]
[Date "2023.10.27"]
[Round "3.45"]
[White "Saric, Ivan"]
[Black "Parligras, Mircea-Emilian"]
[Result "1-0"]
[WhiteElo "2647"]
[BlackElo "2561"]
[EventDate "2023.10.25"]
[ECO "C50"]
[PlyCount "123"]
[BlackFideId "1204297"]
[TimeControl "40/100 + 20/50 + 15 + 30s/move"]
[WhiteFideId "14508150"]

1.e4 {[%clk 01:40:59] [%emt 00:00:02]} 1...e5 {[%clk 01:40:49] [%emt 00:00:11]} 
2.Nf3 {[%clk 01:41:25] [%emt 00:00:03]} 2...Nc6 {[%clk 01:41:14] [%emt
00:00:05]} 3.Bc4 {[%clk 01:41:45] [%emt 00:00:11]} 3...Bc5 {[%clk 01:41:34]
[%emt 00:00:09]} 4.O-O {[%clk 01:42:07] [%emt 00:00:09]} 4...Nf6 {[%clk
01:41:49] [%emt 00:00:15]} 5.d3 {[%clk 01:42:32] [%emt 00:00:05]} 5...a6 {[%clk
01:40:26] [%emt 00:01:53]} 6.a4 {[%clk 01:41:02] [%emt 00:02:00]} 6...d6 {[%clk
01:39:22] [%emt 00:01:34]} 7.c3 {[%clk 01:41:03] [%emt 00:00:28]} 7...Ba7 
{[%clk 01:39:29] [%emt 00:00:23]} 8.Re1 {[%clk 01:40:57] [%emt 00:00:36]} 
8...h6 {[%clk 01:39:25] [%emt 00:00:34]} 9.Nbd2 {[%clk 01:41:02] [%emt
00:00:25]} 9...O-O {[%clk 01:30:49] [%emt 00:09:06]} 10.h3 {[%clk 01:40:33]
[%emt 00:01:00]} 10...Be6 {[%clk 01:31:04] [%emt 00:00:15]} 11.Bxe6 {[%clk
01:40:41] [%emt 00:00:22]} 11...fxe6 {[%clk 01:31:30] [%emt 00:00:04]} 12.b4 
{[%clk 01:40:50] [%emt 00:00:21]} 12...Nh5 {[%clk 01:28:57] [%emt 00:03:03]} 
13.Nf1 {[%clk 01:40:43] [%emt 00:00:36]} 13...Nf4 {[%clk 01:28:54] [%emt
00:00:33]} 14.Ra2 {[%clk 01:40:31] [%emt 00:00:43]} 14...Qe8 {[%clk 01:28:42]
[%emt 00:00:41]} 15.Kh2 {[%clk 01:28:30] [%emt 00:12:31]} 15...Qh5 {[%clk
01:13:08] [%emt 00:16:04]} 16.Ng1 {[%clk 01:19:33] [%emt 00:09:27]} 16...Qxd1 
{[%clk 01:11:50] [%emt 00:01:49]} 17.Rxd1 {[%clk 01:19:59] [%emt 00:00:04]} 
17...Rad8 {[%clk 01:07:01] [%emt 00:05:18]} 18.b5 {[%clk 01:15:01] [%emt
00:05:29]} 18...Ne7 {[%clk 01:03:36] [%emt 00:03:54]} 19.Nf3 {[%clk 01:08:41]
[%emt 00:06:50]} 19...Neg6 {[%clk 01:00:41] [%emt 00:03:26]} 20.d4 {[%clk
01:07:28] [%emt 00:01:43]} 20...exd4 {[%clk 00:54:58] [%emt 00:06:13]} 21.cxd4 
{[%clk 01:07:04] [%emt 00:00:54]} 21...axb5 {[%clk 00:53:33] [%emt 00:01:54]} 
22.axb5 {[%clk 01:07:30] [%emt 00:00:05]} 22...Bb6 {[%clk 00:53:58] [%emt
00:00:04]} 23.Be3 {[%clk 01:06:26] [%emt 00:01:34]} 23...Ra8 {[%clk 00:50:35]
[%emt 00:03:53]} 24.Rda1 {[%clk 01:06:54] [%emt 00:00:03]} 24...Rxa2 {[%clk
00:50:52] [%emt 00:00:13]} 25.Rxa2 {[%clk 01:07:21] [%emt 00:00:03]} 25...Nd3 
{[%clk 00:36:04] [%emt 00:15:18]} 26.Rd2 {[%clk 00:58:23] [%emt 00:09:27]} 
26...Ndf4 {[%clk 00:35:28] [%emt 00:01:06]} 27.Ra2 {[%clk 00:47:14] [%emt
00:11:40]} 27...Nd3 {[%clk 00:35:50] [%emt 00:00:07]} 28.Ra3 {[%clk 00:46:23]
[%emt 00:01:21]} 28...Nb2 {[%clk 00:31:51] [%emt 00:04:30]} 29.N1d2 {[%clk
00:45:52] [%emt 00:01:01]} 29...d5 {[%clk 00:31:59] [%emt 00:00:22]} 30.e5 
{[%clk 00:41:04] [%emt 00:05:18]} 30...Ne7 {[%clk 00:28:52] [%emt 00:03:36]} 
31.g4 {[%clk 00:38:03] [%emt 00:03:31]} 31...Nd1 {[%clk 00:22:40] [%emt
00:06:43]} 32.Kg3 {[%clk 00:38:07] [%emt 00:00:25]} 32...Nxe3 {[%clk 00:23:00]
[%emt 00:00:10]} 33.fxe3 {[%clk 00:38:33] [%emt 00:00:04]} 33...c5 {[%clk
00:22:47] [%emt 00:00:43]} 34.bxc6 {[%clk 00:38:52] [%emt 00:00:12]} 34...bxc6 
{[%clk 00:23:04] [%emt 00:00:13]} 35.Nb3 {[%clk 00:37:03] [%emt 00:02:19]} 
35...Rb8 {[%clk 00:19:37] [%emt 00:03:56]} 36.Ne1 {[%clk 00:34:50] [%emt
00:02:44]} 36...Rb7 {[%clk 00:16:25] [%emt 00:03:42]} 37.Ra6 {[%clk 00:27:51]
[%emt 00:07:28]} 37...Kf7 {[%clk 00:13:22] [%emt 00:03:34]} 38.Nd3 {[%clk
00:28:02] [%emt 00:00:18]} 38...Nc8 {[%clk 00:13:25] [%emt 00:00:27]} 39.Ra8 
{[%clk 00:27:04] [%emt 00:01:29]} 39...Ne7 {[%clk 00:13:50] [%emt 00:00:05]} 
40.Nbc5 {[%clk 00:21:19] [%emt 00:06:15]} 40...Ra7 {[%clk 00:11:16] [%emt
00:03:04]} 41.Rb8 {[%clk 00:15:35] [%emt 00:06:14]} 41...Bxc5 {[%clk 00:11:11]
[%emt 00:00:35]} 42.Nxc5 {[%clk 00:16:00] [%emt 00:00:05]} 42...Ra3 {[%clk
00:37:27] [%emt 00:24:14]} 43.Kf3 {[%clk 01:03:29] [%emt 00:03:00]} 43...g5 
{[%clk 00:35:29] [%emt 00:02:28]} 44.Rh8 {[%clk 00:54:07] [%emt 00:09:52]} 
44...Kg7 {[%clk 00:34:05] [%emt 00:01:55]} 45.Rd8 {[%clk 00:54:05] [%emt
00:00:31]} 45...Ng6 {[%clk 00:33:13] [%emt 00:01:22]} 46.Rd7+ {[%clk 00:54:06]
[%emt 00:00:29]} 46...Kg8 {[%clk 00:33:05] [%emt 00:00:39]} 47.Nxe6 {[%clk
00:53:52] [%emt 00:00:44]} 47...Nh4+ {[%clk 00:33:29] [%emt 00:00:05]} 48.Ke2 
{[%clk 00:53:37] [%emt 00:00:45]} 48...Ra2+ {[%clk 00:33:43] [%emt 00:00:16]} 
49.Kd3 {[%clk 00:53:32] [%emt 00:00:34]} 49...Ra3+ {[%clk 00:33:55] [%emt
00:00:19]} 50.Ke2 {[%clk 00:36:37] [%emt 00:17:25]} 50...Ra2+ {[%clk 00:34:20]
[%emt 00:00:05]} 51.Kd1 {[%clk 00:36:57] [%emt 00:00:10]} 51...Ng2 {[%clk
00:34:26] [%emt 00:00:24]} 52.Rg7+ {[%clk 00:36:37] [%emt 00:00:50]} 52...Kh8 
{[%clk 00:34:50] [%emt 00:00:06]} 53.Rg6 {[%clk 00:36:51] [%emt 00:00:17]} 
53...Nxe3+ {[%clk 00:35:05] [%emt 00:00:14]} 54.Kc1 {[%clk 00:37:18] [%emt
00:00:03]} 54...Rc2+ {[%clk 00:29:23] [%emt 00:06:12]} 55.Kb1 {[%clk 00:37:46]
[%emt 00:00:03]} 55...Re2 {[%clk 00:24:18] [%emt 00:05:34]} 56.Rxh6+ {[%clk
00:37:44] [%emt 00:00:32]} 56...Kg8 {[%clk 00:24:46] [%emt 00:00:01]} 57.Nxg5 
{[%clk 00:37:28] [%emt 00:00:47]} 57...c5 {[%clk 00:24:11] [%emt 00:01:06]} 
58.Rg6+ {[%clk 00:34:26] [%emt 00:03:32]} 58...Kh8 {[%clk 00:23:46] [%emt
00:00:55]} 59.dxc5 {[%clk 00:33:04] [%emt 00:01:52]} 59...d4 {[%clk 00:23:06]
[%emt 00:01:09]} 60.Ne4 {[%clk 00:29:19] [%emt 00:04:15]} 60...Kh7 {[%clk
00:09:52] [%emt 00:13:44]} 61.Rd6 {[%clk 00:28:46] [%emt 00:01:03]} 61...Nc2 
{[%clk 00:10:17] [%emt 00:00:05]} 62.Kc1 {[%clk 00:18:17] [%emt 00:11:00]} 1-0

[Event "FIDE Grand Swiss 2023"]
[Site "Villa Marina, Douglas, Isle of Man"]
[Date "2023.10.27"]
[Round "3.46"]
[White "Mishra, Abhimanyu"]
[Black "Svane, Rasmus"]
[Result "1/2-1/2"]
[WhiteElo "2592"]
[BlackElo "2646"]
[EventDate "2023.10.25"]
[ECO "C54"]
[PlyCount "89"]
[BlackFideId "4657101"]
[TimeControl "40/100 + 20/50 + 15 + 30s/move"]
[WhiteFideId "30920019"]

1.e4 {[%clk 01:40:58] [%emt 00:00:02]} 1...e5 {[%clk 01:40:48] [%emt 00:00:11]} 
2.Nf3 {[%clk 01:41:20] [%emt 00:00:09]} 2...Nc6 {[%clk 01:41:13] [%emt
00:00:06]} 3.Bc4 {[%clk 01:41:37] [%emt 00:00:13]} 3...Nf6 {[%clk 01:41:38]
[%emt 00:00:05]} 4.d3 {[%clk 01:41:50] [%emt 00:00:16]} 4...Bc5 {[%clk 01:42:04]
[%emt 00:00:04]} 5.c3 {[%clk 01:42:04] [%emt 00:00:16]} 5...d6 {[%clk 01:42:29]
[%emt 00:00:06]} 6.O-O {[%clk 01:42:13] [%emt 00:00:21]} 6...h6 {[%clk 01:42:54]
[%emt 00:00:04]} 7.Re1 {[%clk 01:41:00] [%emt 00:01:43]} 7...O-O {[%clk
01:43:16] [%emt 00:00:08]} 8.Nbd2 {[%clk 01:40:40] [%emt 00:00:50]} 8...Bb6 
{[%clk 01:42:05] [%emt 00:01:42]} 9.b4 {[%clk 01:39:54] [%emt 00:01:16]} 
9...Ne7 {[%clk 01:36:26] [%emt 00:06:08]} 10.Bb3 {[%clk 01:39:38] [%emt
00:00:47]} 10...c6 {[%clk 01:34:44] [%emt 00:02:12]} 11.a4 {[%clk 01:34:59]
[%emt 00:05:09]} 11...Ng6 {[%clk 01:14:43] [%emt 00:20:31]} 12.a5 {[%clk
01:35:14] [%emt 00:00:15]} 12...Bc7 {[%clk 01:15:08] [%emt 00:00:04]} 13.d4 
{[%clk 01:34:09] [%emt 00:01:35]} 13...Re8 {[%clk 00:57:51] [%emt 00:17:47]} 
14.dxe5 {[%clk 01:31:49] [%emt 00:02:50]} 14...dxe5 {[%clk 00:58:19] [%emt
00:00:02]} 15.Bc4 {[%clk 01:31:21] [%emt 00:00:58]} 15...Bd7 {[%clk 00:44:39]
[%emt 00:14:10]} 16.Nb3 {[%clk 01:16:43] [%emt 00:15:09]} 16...b6 {[%clk
00:30:21] [%emt 00:14:48]} 17.Qc2 {[%clk 01:07:44] [%emt 00:09:28]} 17...Qe7 
{[%clk 00:27:08] [%emt 00:03:44]} 18.Be3 {[%clk 00:59:40] [%emt 00:08:34]} 
18...Ng4 {[%clk 00:26:21] [%emt 00:01:16]} 19.Bc1 {[%clk 00:52:27] [%emt
00:07:43]} 19...Nf6 {[%clk 00:26:23] [%emt 00:00:28]} 20.h3 {[%clk 00:49:18]
[%emt 00:03:39]} 20...Nh5 {[%clk 00:26:05] [%emt 00:00:48]} 21.Be3 {[%clk
00:48:37] [%emt 00:01:11]} 21...Qf6 {[%clk 00:24:49] [%emt 00:01:46]} 22.Nbd2 
{[%clk 00:46:09] [%emt 00:02:58]} 22...Red8 {[%clk 00:17:24] [%emt 00:07:56]} 
23.Bf1 {[%clk 00:38:01] [%emt 00:08:38]} 23...Be6 {[%clk 00:15:58] [%emt
00:01:55]} 24.g3 {[%clk 00:35:37] [%emt 00:02:54]} 24...Qe7 {[%clk 00:16:08]
[%emt 00:00:20]} 25.Nc4 {[%clk 00:34:13] [%emt 00:01:54]} 25...b5 {[%clk
00:13:58] [%emt 00:02:40]} 26.Bc5 {[%clk 00:26:38] [%emt 00:08:06]} 26...Qf6 
{[%clk 00:12:02] [%emt 00:02:25]} 27.Ncd2 {[%clk 00:26:53] [%emt 00:00:15]} 
27...Bd6 {[%clk 00:12:24] [%emt 00:00:09]} 28.Bxd6 {[%clk 00:20:43] [%emt
00:06:40]} 28...Rxd6 {[%clk 00:12:52] [%emt 00:00:02]} 29.c4 {[%clk 00:20:35]
[%emt 00:00:37]} 29...a6 {[%clk 00:10:13] [%emt 00:03:10]} 30.Ra3 {[%clk
00:17:42] [%emt 00:03:23]} 30...Rad8 {[%clk 00:09:23] [%emt 00:01:19]} 31.Rae3 
{[%clk 00:17:27] [%emt 00:00:45]} 31...Qe7 {[%clk 00:08:25] [%emt 00:01:27]} 
32.Nb3 {[%clk 00:13:41] [%emt 00:04:18]} 32...Nf6 {[%clk 00:08:42] [%emt
00:00:13]} 33.Nc5 {[%clk 00:12:10] [%emt 00:02:00]} 33...Bc8 {[%clk 00:08:57]
[%emt 00:00:15]} 34.Rc3 {[%clk 00:11:50] [%emt 00:00:50]} 34...Nh7 {[%emt
00:08:51]} 35.Nd3 {[%clk 00:07:19]} 35...Bd7 {[%clk 00:06:04] [%emt 00:00:03]} 
36.Nc5 {[%clk 00:06:50] [%emt 00:01:00]} 36...Bc8 {[%clk 00:06:31] [%emt
00:00:03]} 37.Nd3 {[%clk 00:07:14] [%emt 00:00:05]} 37...Bd7 {[%clk 00:06:58]
[%emt 00:00:04]} 38.cxb5 {[%clk 00:03:03] [%emt 00:04:41]} 38...cxb5 {[%clk
00:07:07] [%emt 00:00:20]} 39.Rc7 {[%clk 00:02:34] [%emt 00:00:59]} 39...Qf6 
{[%clk 00:01:36] [%emt 00:06:01]} 40.Re3 {[%clk 00:02:11] [%emt 00:00:53]} 
40...Ng5 {[%clk 00:00:44] [%emt 00:01:21]} 41.Nxg5 {[%clk 00:45:34] [%emt
00:07:08]} 41...hxg5 {[%emt 00:00:05]} 42.Be2 {[%clk 00:30:32] [%emt 00:15:32]} 
42...Nf4 {[%clk 00:31:11] [%emt 00:20:29]} 43.gxf4 {[%clk 00:25:15] [%emt
00:05:47]} 43...gxf4 {[%clk 00:31:35] [%emt 00:00:05]} 44.Rf3 {[%clk 00:24:14]
[%emt 00:01:32]} 44...Qg6+ {[%clk 00:14:50] [%emt 00:17:14]} 45.Kf1 {[%clk
00:19:54] [%emt 00:04:49]} 1/2-1/2